bitfinex/quotes_SOLUSD_20250602
["timestamp","ask_amount","ask_price","bid_price","bid_amount"]
[1748823316116,14.16374707,157.67,157.66,26.0]
[1748823316717,148.9,157.69,157.66,26.0]
[1748823317023,148.9,157.69,157.65,6.3428839]
[1748823318210,148.9,157.69,157.67,26.0]
[1748823318821,148.9,157.69,157.68,6.34195839]
[1748823319005,14.16374707,157.7,157.67,32.34232361]
[1748823319402,14.16374707,157.71,157.67,32.34232361]
[1748823325817,14.16374707,157.69,157.67,26.0]
[1748823326018,14.16374707,157.68,157.59,34.51281894]
[1748823326218,14.16374707,157.64,157.61,6.34477507]
[1748823326425,14.16374707,157.63,157.58,1.5093]
[1748823326635,14.16374707,157.63,157.6,26.0]
[1748823326834,14.16374707,157.62,157.61,26.0]
[1748823327004,14.16374707,157.62,157.58,7.85515513]
[1748823327202,14.16374707,157.61,157.6,26.0]
[1748823327720,14.16374707,157.61,157.58,6.34585513]
[1748823327920,14.16374707,157.62,157.58,6.34585513]
[1748823328131,14.16374707,157.62,157.61,26.0]
[1748823328306,14.16374707,157.62,157.6,26.0]
[1748823328635,14.16374707,157.62,157.61,26.0]
[1748823329732,14.16374707,157.62,157.58,6.34586484]
[1748823329933,14.16374707,157.6,157.56,6.34678852]
[1748823330133,14.16374707,157.59,157.58,26.0]
[1748823330433,14.16374707,157.59,157.56,6.34678852]
[1748823330637,14.16374707,157.57,157.56,6.34678852]
[1748823330843,14.16374707,157.57,157.56,32.34678852]
[1748823331922,14.16374707,157.57,157.56,26.0]
[1748823332107,14.16374707,157.57,157.53,6.3479972]
[1748823332316,14.16374707,157.56,157.55,26.0]
[1748823332612,14.16374707,157.56,157.53,6.3479972]
[1748823332813,14.16374707,157.56,157.55,26.0]
[1748823333319,14.16374707,157.57,157.56,26.0]
[1748823335225,148.9,157.56,157.51,6.34880325]
[1748823335440,148.9,157.56,157.53,26.0]
[1748823335441,14.16374707,157.54,157.53,26.0]
[1748823335633,14.16374707,157.54,157.5,6.3491137]
[1748823335833,14.16374707,157.53,157.52,26.0]
[1748823336146,148.9,157.56,157.52,32.34832019]
[1748823336329,163.06374707,157.56,157.52,32.34832019]
[1748823336539,148.9,157.56,157.52,32.34832019]
[1748823336741,163.06374707,157.56,157.52,32.34832019]
[1748823337959,148.9,157.56,157.52,32.34832019]
[1748823338544,163.06374707,157.56,157.52,32.34832019]
[1748823341444,14.16374707,157.55,157.52,32.34832019]
[1748823341847,14.16374707,157.53,157.51,6.34871099]
[1748823342750,14.16374707,157.53,157.52,26.0]
[1748823344454,14.16374707,157.53,157.51,6.34876175]
[1748823344654,14.16374707,157.52,157.51,6.34876175]
[1748823346583,14.16374707,157.52,157.5,26.0]
[1748823346759,14.16374707,157.51,157.48,6.34988233]
[1748823346953,10.14,157.52,157.5,26.0]
[1748823347356,10.14,157.52,157.48,6.34988233]
[1748823347560,10.14,157.52,157.49,26.0]
[1748823348064,14.16374707,157.51,157.5,26.0]
[1748823348662,14.16374707,157.51,157.5,32.34920634]
[1748823356968,24.30374707,157.52,157.5,32.34920634]
[1748823357169,10.14,157.56,157.5,32.34920634]
[1748823357489,6.2878,157.59,157.57,26.0]
[1748823357490,14.16374707,157.59,157.57,26.0]
[1748823358971,14.16374707,157.58,157.57,26.0]
[1748823360654,14.16374707,157.58,157.57,32.34638573]
[1748823361177,14.16374707,157.58,157.57,26.0]
[1748823361751,14.16374707,157.58,157.54,32.34750129]
[1748823361752,14.16374707,157.58,157.51,45.6137]
[1748823361951,14.16374707,157.55,157.54,26.0]
[1748823362865,14.16374707,157.56,157.55,26.0]
[1748823363066,14.16374707,157.57,157.55,26.0]
[1748823366186,10.14,157.6,157.55,48.21507364]
[1748823366692,148.9,157.63,157.55,48.21507364]
[1748823366693,148.9,157.63,157.59,26.0]
[1748823366886,10.14,157.64,157.61,26.0]
[1748823367052,10.14,157.64,157.62,26.0]
[1748823367257,10.14,157.64,157.63,6.34397005]
[1748823367459,10.14,157.64,157.62,26.0]
[1748823367460,24.30374707,157.64,157.62,26.0]
[1748823367861,14.16374707,157.63,157.62,26.0]
[1748823368959,24.30374707,157.64,157.62,32.34437254]
[1748823369157,24.30374707,157.64,157.61,32.34464944]
[1748823369363,10.14,157.64,157.63,26.0]
[1748823369568,24.30374707,157.64,157.63,26.0]
[1748823369964,24.30374707,157.64,157.61,32.34470797]
[1748823370178,14.16374707,157.63,157.61,32.34470797]
[1748823373306,14.16374707,157.63,157.61,26.0]
[1748823373601,14.16374707,157.62,157.61,26.0]
[1748823373893,14.16374707,157.62,157.61,32.34477507]
[1748823374389,14.16374707,157.62,157.61,26.0]
[1748823374901,14.16374707,157.62,157.58,26.0]
[1748823375203,14.16374707,157.6,157.58,26.0]
[1748823375401,14.16374707,157.59,157.58,26.0]
[1748823376469,14.16374707,157.6,157.58,32.34598299]
[1748823377980,6.34440108,157.62,157.59,26.0]
[1748823378183,14.16374707,157.6,157.59,26.0]
[1748823378382,156.82510919,157.63,157.59,26.0]
[1748823378579,14.16374707,157.6,157.58,26.0]
[1748823378792,14.16374707,157.59,157.56,26.0]
[1748823378975,14.16374707,157.57,157.56,26.0]
[1748823380697,14.16374707,157.58,157.56,6.34678852]
[1748823383004,14.16374707,157.58,157.57,26.0]
[1748823384690,10.14,157.59,157.57,26.0]
[1748823384890,14.16374707,157.58,157.57,26.0]
[1748823387099,14.16374707,157.58,157.55,6.34705192]
[1748823387301,14.16374707,157.57,157.55,32.34705192]
[1748823387789,14.16374707,157.56,157.55,32.34705192]
[1748823387987,14.16374707,157.56,157.51,6.34880325]
[1748823388188,14.16374707,157.53,157.51,6.34880325]
[1748823388590,14.16374707,157.54,157.51,6.34880325]
[1748823389109,14.16374707,157.54,157.53,26.0]
[1748823389410,14.16374707,157.57,157.53,26.0]
[1748823389786,148.9,157.58,157.53,26.0]
[1748823389993,14.16374707,157.59,157.54,18.64964886]
[1748823391194,14.16374707,157.57,157.55,6.34719136]
[1748823392006,30.64892579,157.6,157.56,26.0]
[1748823392390,30.64892579,157.6,157.55,26.0]
[1748823393106,14.16374707,157.56,157.55,26.0]
[1748823394286,14.16374707,157.56,157.48,24.04969648]
[1748823394508,14.16374707,157.54,157.52,26.0]
[1748823395804,14.16374707,157.54,157.51,32.34849132]
[1748823396195,14.16374707,157.55,157.54,26.0]
[1748823396613,14.16374707,157.56,157.54,26.0]
[1748823396993,148.9,157.59,157.56,26.0]
[1748823397198,1.5811,157.63,157.56,26.0]
[1748823397199,14.16374707,157.61,157.56,26.0]
[1748823397409,24.30374707,157.62,157.56,26.0]
[1748823397631,10.14,157.62,157.6,26.0]
[1748823397797,10.14,157.62,157.61,6.34477507]
[1748823397995,14.16374707,157.64,157.61,6.34477507]
[1748823399415,14.16374707,157.65,157.61,6.34477507]
[1748823399786,101.5,157.66,157.61,22.20671276]
[1748823400086,163.06374707,157.68,157.64,26.0]
[1748823400689,14.16374707,157.67,157.64,26.0]
[1748823401790,163.06374707,157.68,157.64,26.0]
[1748823401997,163.06374707,157.68,157.67,26.0]
[1748823402207,148.9,157.68,157.67,26.0]
[1748823402691,24.30374707,157.7,157.67,26.0]
[1748823402887,10.14,157.7,157.67,26.0]
[1748823403315,24.30374707,157.7,157.67,26.0]
[1748823404317,14.16374707,157.69,157.67,26.0]
[1748823404735,14.16374707,157.69,157.67,32.34232176]
[1748823408514,24.30374707,157.7,157.67,32.34232176]
[1748823409409,10.14,157.7,157.67,32.34232176]
[1748823409631,148.9,157.73,157.71,26.0]
[1748823409812,163.06374707,157.73,157.71,26.0]
[1748823410133,163.06374707,157.73,157.72,26.0]
[1748823417650,163.06374707,157.73,157.72,32.34034998]
[1748823417826,148.9,157.73,157.72,32.34034998]
[1748823418027,10.14,157.74,157.72,32.34034998]
[1748823418227,14.16374707,157.76,157.72,32.34034998]
[1748823418624,27.09029405,157.83,157.73,1.6352]
[1748823418826,19.030099,157.93,157.88,18.64964886]
[1748823419030,1.0,158.0,157.93,26.0]
[1748823419248,14.16374707,157.97,157.93,26.0]
[1748823419438,7.32912288,158.0,157.94,26.0]
[1748823419639,14.16374707,157.95,157.91,26.0]
[1748823419841,16.8367688,157.98,157.91,26.0]
[1748823419842,14.16374707,157.92,157.91,26.0]
[1748823421159,14.16374707,157.94,157.91,26.0]
[1748823421752,14.16374707,157.93,157.92,6.33232016]
[1748823425941,10.50675516,157.98,157.95,26.0]
[1748823426142,0.36675516,157.98,157.96,6.33071663]
[1748823427149,14.53050223,157.98,157.96,6.33071663]
[1748823427461,14.16374707,157.97,157.96,6.33071663]
[1748823428141,14.16374707,157.97,157.96,26.0]
[1748823429944,14.53050223,157.98,157.97,26.0]
[1748823430361,14.53050223,157.98,157.97,32.33031588]
[1748823431041,0.36675516,157.98,157.97,32.33031588]
[1748823431776,10.9761386,158.13,158.05,26.0]
[1748823431948,14.16374707,158.08,158.05,26.0]
[1748823432140,10.9761386,158.13,158.05,26.0]
[1748823432342,10.9761386,158.13,158.07,6.32631112]
[1748823432567,0.8561386,158.13,158.1,26.0]
[1748823432775,0.8561386,158.13,158.12,18.64964886]
[1748823432940,2.52913075,158.17,158.16,26.0]
[1748823433644,2.52913075,158.17,158.16,18.64964886]
[1748823434051,2.52913075,158.17,158.16,4.58509868]
[1748823434239,10.56,158.31,158.16,44.26365186]
[1748823434452,21.10672496,158.2,158.19,26.0]
[1748823434770,21.10672496,158.25,158.2,26.0]
[1748823434939,71.50672496,158.31,158.2,26.0]
[1748823435142,21.10672496,158.21,158.2,26.0]
[1748823435343,10.56,158.24,158.19,26.0]
[1748823435544,21.10672496,158.21,158.19,26.0]
[1748823435772,10.56,158.24,158.19,26.0]
[1748823436164,21.10672496,158.23,158.19,26.0]
[1748823436551,21.10672496,158.23,158.21,26.0]
[1748823436747,21.10672496,158.22,158.21,26.0]
[1748823437273,42.21344992,158.22,158.15,0.10309734]
[1748823437452,21.10672496,158.16,158.15,0.10309734]
[1748823438548,21.10672496,158.16,158.15,26.10309734]
[1748823439087,27.42943613,158.16,158.15,30.50309734]
[1748823439269,27.42943613,158.16,158.15,4.50309734]
[1748823439767,27.42943613,158.16,158.15,0.10309734]
[1748823440454,82.99258789,158.16,158.02,40.63344395]
[1748823440659,21.10672496,158.09,158.07,26.0]
[1748823440869,21.10672496,158.09,158.07,26.0368599]
[1748823441060,10.56,158.11,158.07,26.0368599]
[1748823441061,10.56,158.11,158.07,0.0368599]
[1748823441477,21.10672496,158.09,158.07,0.0368599]
[1748823441708,21.10672496,158.08,158.07,0.0368599]
[1748823443853,27.43263589,158.08,158.07,0.0368599]
[1748823444172,21.10672496,158.08,158.07,0.0368599]
[1748823444357,21.10672496,158.08,158.05,26.0]
[1748823444561,21.10672496,158.06,158.05,26.0]
[1748823444750,21.10672496,158.06,158.04,26.0]
[1748823444950,21.10672496,158.05,158.04,26.0]
[1748823445348,31.66672496,158.05,158.01,0.076744]
[1748823445563,21.10672496,158.02,158.01,0.076744]
[1748823447555,10.56,158.08,158.01,0.076744]
[1748823447757,91.08,158.1,158.04,26.0]
[1748823447986,10.56,158.09,158.04,26.0]
[1748823448794,10.56,158.09,158.08,26.0]
[1748823448985,31.66672496,158.09,158.08,26.0]
[1748823449894,31.66672496,158.09,158.05,6.32711167]
[1748823450104,10.56,158.09,158.06,26.0]
[1748823450403,21.10672496,158.07,158.06,26.0]
[1748823451185,21.10672496,158.07,158.01,0.076744]
[1748823451386,21.10672496,158.02,158.01,6.40545737]
[1748823451978,21.10672496,158.03,158.01,6.40545737]
[1748823452391,10.56,158.09,158.01,6.40545737]
[1748823452392,21.10672496,158.02,158.01,6.40545737]
[1748823452780,21.10672496,158.02,158.01,26.076744]
[1748823453504,21.10672496,158.02,158.01,0.076744]
[1748823453708,21.10672496,158.02,158.01,26.076744]
[1748823454401,138.81713642,158.08,158.01,26.076744]
[1748823454696,10.56,158.07,158.01,26.076744]
[1748823454875,10.56,158.07,158.05,26.0]
[1748823456995,10.56,158.07,158.06,6.32671137]
[1748823459900,31.66672496,158.07,158.05,32.32710383]
[1748823460078,21.10672496,158.06,158.05,32.32710383]
[1748823460589,21.10672496,158.06,158.05,6.32710383]
[1748823461098,21.10672496,158.06,158.05,26.0]
[1748823461885,31.66672496,158.07,158.05,26.0]
[1748823462704,21.10672496,158.06,158.05,26.0]
[1748823463287,21.10672496,158.06,158.05,32.32711167]
[1748823464202,21.10672496,158.06,158.05,26.0]
[1748823466488,21.10672496,158.06,158.01,0.076744]
[1748823466697,21.10672496,158.02,158.01,0.076744]
[1748823466903,21.10672496,158.02,158.01,26.076744]
[1748823467103,21.10672496,158.02,158.01,32.40533374]
[1748823467391,10.68,158.05,158.01,48.22711717]
[1748823467701,31.78672496,158.05,158.01,48.22711717]
[1748823467908,21.10672496,158.04,158.01,48.22711717]
[1748823468512,21.10672496,158.04,158.01,32.40533374]
[1748823468920,21.10672496,158.02,158.01,32.40533374]
[1748823469394,21.10672496,158.02,158.01,0.076744]
[1748823469597,10.68,158.05,158.01,26.076744]
[1748823469794,21.10672496,158.02,158.01,6.40545737]
[1748823470914,10.68,158.05,158.02,26.0]
[1748823471123,21.10672496,158.03,158.01,6.40545737]
[1748823471295,21.10672496,158.03,158.02,26.0]
[1748823471495,10.68,158.05,158.03,6.32791242]
[1748823471699,21.10672496,158.04,158.03,6.32791242]
[1748823472400,21.10672496,158.04,158.03,32.32791242]
[1748823474619,21.10672496,158.04,158.01,0.076744]
[1748823474819,21.10672496,158.02,158.01,26.076744]
[1748823475710,21.10672496,158.02,158.01,0.076744]
[1748823477416,10.68,158.05,158.01,0.076744]
[1748823477616,21.10672496,158.02,158.01,0.076744]
[1748823478318,46.08468669,158.02,158.01,0.076744]
[1748823478523,18.64964886,158.01,157.95,6.33084363]
[1748823478822,21.10672496,157.96,157.95,32.33084363]
[1748823481116,10.68,157.97,157.95,32.33084363]
[1748823481416,10.68,157.97,157.96,26.0]
[1748823481806,10.68,157.97,157.96,32.33071663]
[1748823482718,21.10672496,158.0,157.96,48.15750822]
[1748823482918,21.10672496,158.01,157.96,48.15750822]
[1748823483225,21.10672496,158.0,157.96,48.15750822]
[1748823483807,21.10672496,157.97,157.96,32.33071663]
[1748823484023,21.10672496,157.97,157.9,15.83192321]
[1748823484227,21.10672496,157.92,157.9,15.83192321]
[1748823484922,21.10672496,157.91,157.9,15.83192321]
[1748823485429,21.10672496,157.91,157.89,6.33352333]
[1748823485656,21.10672496,157.9,157.89,6.33352333]
[1748823485855,21.10672496,157.9,157.89,26.0]
[1748823486230,21.10672496,157.91,157.9,26.0]
[1748823486430,21.10672496,157.92,157.87,22.1696681]
[1748823486633,21.10672496,157.92,157.9,26.0]
[1748823487621,21.10672496,157.95,157.9,26.0]
[1748823488438,31.78672496,157.96,157.94,26.0]
[1748823488927,21.10672496,157.95,157.94,26.0]
[1748823489960,21.10672496,157.95,157.92,26.0]
[1748823490253,21.10672496,157.93,157.92,26.0]
[1748823490435,21.10672496,157.93,157.92,6.33232016]
[1748823491929,21.10672496,157.93,157.91,26.0]
[1748823492130,21.10672496,157.92,157.9,26.0]
[1748823492331,21.10672496,157.91,157.87,6.33432571]
[1748823492530,21.10672496,157.9,157.87,22.17013998]
[1748823492830,21.10672496,157.9,157.89,26.0]
[1748823493359,21.10672496,157.91,157.87,22.17013998]
[1748823493772,21.10672496,157.91,157.9,32.33312222]
[1748823494640,21.10672496,157.93,157.9,32.33312222]
[1748823495441,10.68,157.96,157.9,48.16592779]
[1748823495667,21.10672496,157.93,157.9,48.16592779]
[1748823497246,31.78672496,157.96,157.9,48.16592779]
[1748823497842,21.10672496,157.95,157.9,48.16592779]
[1748823498042,21.10672496,157.94,157.9,48.16592779]
[1748823498854,21.10672496,157.93,157.9,32.33312222]
[1748823499050,21.10672496,157.92,157.9,32.33312222]
[1748823501470,21.10672496,157.91,157.9,32.33312222]
[1748823501653,21.10672496,157.91,157.9,26.0]
[1748823501966,21.10672496,157.91,157.9,32.33312222]
[1748823502164,1.6086,157.94,157.9,32.33312222]
[1748823502472,31.78672496,157.96,157.9,48.16592779]
[1748823503260,21.10672496,157.95,157.9,48.16592779]
[1748823504298,1.6086,157.99,157.9,79.83153893]
[1748823504468,10.6,158.0,157.94,26.0]
[1748823505171,31.70672496,158.0,157.94,26.0]
[1748823505347,21.10672496,157.98,157.97,26.0]
[1748823505949,21.10672496,157.99,157.98,26.0]
[1748823506260,31.70672496,158.0,157.98,26.0]
[1748823507770,31.70672496,158.0,157.99,6.32951452]
[1748823508562,10.6,158.0,157.99,6.32951452]
[1748823510766,31.70672496,158.0,157.99,6.32951452]
[1748823510959,10.6,158.0,157.99,6.32951452]
[1748823511161,91.16,158.03,158.02,26.0]
[1748823511558,10.6,158.04,158.02,26.0]
[1748823512599,10.6,158.04,158.03,6.32791242]
[1748823512882,21.10672496,158.09,158.06,26.0]
[1748823513083,10.6,158.08,158.06,26.0]
[1748823513287,31.70672496,158.08,158.06,26.0]
[1748823513493,21.10672496,158.07,158.06,26.0]
[1748823513658,31.70672496,158.08,158.06,26.0]
[1748823514688,31.70672496,158.08,158.07,6.32631112]
[1748823515588,71.32672496,158.08,158.06,30.0]
[1748823515790,50.22,158.08,158.05,6.32674212]
[1748823515963,21.10672496,158.06,158.05,6.32674212]
[1748823516166,50.22,158.08,158.05,6.32674212]
[1748823516365,31.70672496,158.08,158.05,6.32674212]
[1748823516661,10.6,158.08,158.05,15.81777918]
[1748823516890,10.6,158.08,158.07,26.0]
[1748823518694,10.6,158.08,158.07,32.32631112]
[1748823519873,91.14,158.13,158.07,48.14208893]
[1748823520190,10.6,158.12,158.07,48.14208893]
[1748823521991,10.6,158.12,158.08,4.4]
[1748823522368,31.70672496,158.12,158.08,4.4]
[1748823522572,10.6,158.12,158.09,6.32551078]
[1748823523091,31.70672496,158.12,158.09,6.32551078]
[1748823526395,10.6,158.12,158.09,22.13928774]
[1748823527177,10.6,158.12,158.11,32.32471064]
[1748823529079,31.70672496,158.12,158.11,32.32471064]
[1748823531813,31.70672496,158.12,158.1,6.32499298]
[1748823532104,21.10672496,158.11,158.1,26.0]
[1748823532407,21.10672496,158.11,158.09,6.32537234]
[1748823532791,21.10672496,158.1,158.06,15.81630904]
[1748823532992,21.10672496,158.09,158.08,26.0]
[1748823533202,21.10672496,158.09,158.07,4.4]
[1748823533404,21.10672496,158.08,158.05,6.32711167]
[1748823533594,21.10672496,158.06,158.05,6.32711167]
[1748823533906,21.10672496,158.06,158.05,32.32711167]
[1748823534102,21.10672496,158.07,158.05,32.32711167]
[1748823534328,21.10672496,158.08,158.07,26.0]
[1748823534882,21.10672496,158.08,158.07,32.32631112]
[1748823536908,21.10672496,158.09,158.07,32.32631112]
[1748823537204,21.10672496,158.1,158.07,32.32631112]
[1748823537708,21.10672496,158.09,158.07,32.32631112]
[1748823538885,21.10672496,158.09,158.08,10.72591093]
[1748823539606,21.10672496,158.1,158.08,10.72591093]
[1748823541215,10.5,158.11,158.08,4.4]
[1748823541216,21.10672496,158.09,158.08,4.4]
[1748823541514,21.10672496,158.09,158.07,32.32616538]
[1748823541846,21.10672496,158.08,158.07,32.32616538]
[1748823542019,21.10672496,158.08,158.0,14.35022127]
[1748823542020,22.64762496,158.08,158.0,6.32911392]
[1748823542187,21.10672496,158.01,158.0,6.32911392]
[1748823542514,21.10672496,158.01,157.96,6.33071663]
[1748823542685,21.10672496,157.98,157.96,32.33071663]
[1748823543110,21.10672496,157.97,157.96,32.33071663]
[1748823543591,21.10672496,157.98,157.96,32.33071663]
[1748823544010,21.10672496,157.97,157.96,32.33071663]
[1748823544202,21.10672496,157.97,157.94,6.33151829]
[1748823544508,21.10672496,157.95,157.94,6.33151829]
[1748823545086,21.10672496,157.95,157.94,26.0]
[1748823545286,21.10672496,157.95,157.91,22.16452409]
[1748823545494,21.10672496,157.95,157.94,26.0]
[1748823546312,10.5,157.98,157.95,26.0]
[1748823546608,138.81713642,158.02,157.96,26.0]
[1748823546609,10.5,158.02,157.96,26.0]
[1748823546799,21.10672496,157.97,157.96,26.0]
[1748823547811,21.10672496,157.97,157.94,6.33143925]
[1748823547985,21.10672496,157.95,157.93,32.33180449]
[1748823548185,21.10672496,157.94,157.93,32.33180449]
[1748823550690,21.10672496,157.95,157.93,32.33180449]
[1748823551518,21.10672496,157.94,157.93,32.33180449]
[1748823552402,21.10672496,157.95,157.93,32.33180449]
[1748823552923,10.52,157.96,157.93,32.33180449]
[1748823552924,21.10672496,157.94,157.93,32.33180449]
[1748823555219,21.10672496,157.95,157.93,32.33180449]
[1748823555523,21.10672496,157.94,157.93,32.33180449]
[1748823556019,10.52,157.96,157.93,48.1616025]
[1748823556210,21.10672496,157.94,157.93,48.1616025]
[1748823558427,21.10672496,157.94,157.93,32.33180449]
[1748823560203,21.10672496,157.94,157.92,10.53240614]
[1748823560422,21.10672496,157.93,157.92,10.53240614]
[1748823561138,138.81713642,157.95,157.92,10.53240614]
[1748823561334,138.81713642,157.95,157.92,16.8647263]
[1748823561636,21.10672496,157.93,157.92,16.8647263]
[1748823562501,21.10672496,157.93,157.92,10.53240614]
[1748823563220,14.11506883,157.93,157.92,10.53240614]
[1748823572109,138.81713642,157.92,157.82,6.079]
[1748823572316,14.11506883,157.85,157.82,6.079]
[1748823572628,14.11506883,157.86,157.85,26.0]
[1748823573507,14.11506883,157.86,157.82,21.91971992]
[1748823573917,14.11506883,157.86,157.85,26.0]
[1748823576026,14.11506883,157.86,157.85,32.33512828]
[1748823576420,24.61506883,157.88,157.85,32.33512828]
[1748823577430,14.11506883,157.87,157.85,32.33512828]
[1748823577729,14.11506883,157.86,157.85,32.33512828]
[1748823579740,14.11506883,157.86,157.84,6.33540867]
[1748823580032,14.11506883,157.85,157.84,6.33540867]
[1748823581241,14.11506883,157.85,157.78,38.22488769]
[1748823581242,27.5657,157.85,157.73,6.33994801]
[1748823581443,14.11506883,157.76,157.73,6.33994801]
[1748823581747,14.11506883,157.75,157.73,32.33994801]
[1748823581931,10.52,157.79,157.73,32.33994801]
[1748823581932,14.11506883,157.74,157.73,6.33994801]
[1748823582634,14.11506883,157.74,157.68,22.48056902]
[1748823582828,14.11506883,157.7,157.69,6.34155621]
[1748823583137,14.11506883,157.7,157.69,32.34155621]
[1748823583322,14.05206883,157.7,157.69,6.34155621]
[1748823584418,14.05206883,157.7,157.66,6.3427629]
[1748823584628,14.11506883,157.67,157.66,6.3427629]
[1748823584823,14.11506883,157.68,157.66,6.3427629]
[1748823585439,14.11506883,157.69,157.66,22.19967016]
[1748823586234,14.11506883,157.68,157.66,15.85690726]
[1748823586742,14.11506883,157.67,157.65,6.34316523]
[1748823586915,14.11506883,157.66,157.65,6.34316523]
[1748823587518,10.58,157.71,157.65,22.20107832]
[1748823587715,14.11506883,157.67,157.65,22.20107832]
[1748823588155,10.58,157.71,157.65,22.20107832]
[1748823588352,14.11506883,157.69,157.65,22.20107832]
[1748823588522,10.58,157.71,157.65,6.34316523]
[1748823588718,14.11506883,157.68,157.65,22.20107832]
[1748823589924,14.11506883,157.66,157.65,6.34316523]
[1748823590425,14.11506883,157.66,157.64,6.34350799]
[1748823590746,24.71506883,157.65,157.61,6.34477507]
[1748823590948,14.11506883,157.62,157.57,6.34638573]
[1748823591247,14.11506883,157.58,157.49,22.22363323]
[1748823591446,14.11506883,157.54,157.49,22.22363323]
[1748823591623,14.11506883,157.54,157.52,26.0]
[1748823591820,10.6,157.57,157.52,26.0]
[1748823592035,10.6,157.57,157.53,6.3479972]
[1748823592544,24.71506883,157.57,157.53,22.21799021]
[1748823592861,10.6,157.61,157.56,26.0]
[1748823593219,10.6,157.61,157.58,26.0]
[1748823593741,31.84669872,157.61,157.58,26.0]
[1748823594133,31.84669872,157.61,157.6,5.84517766]
[1748823594324,10.6,157.61,157.6,5.84517766]
[1748823595748,32.18276414,157.67,157.63,26.0]
[1748823595930,21.24669872,157.69,157.63,26.0]
[1748823596130,1.644,157.71,157.64,22.20248667]
[1748823596330,10.6,157.73,157.66,26.0]
[1748823596533,21.24669872,157.72,157.66,26.0]
[1748823596849,10.6,157.73,157.66,26.0]
[1748823596850,21.24669872,157.71,157.66,26.0]
[1748823598126,21.24669872,157.72,157.67,22.19826218]
[1748823598324,21.24669872,157.71,157.67,22.19826218]
[1748823598550,21.24669872,157.71,157.67,6.34236062]
[1748823599462,21.24669872,157.68,157.66,32.34272027]
[1748823599640,21.24669872,157.67,157.66,6.34272027]
[1748823599950,21.24669872,157.67,157.63,26.0]
[1748823600146,21.24669872,157.66,157.63,26.0]
[1748823600357,10.6,157.73,157.67,26.0]
[1748823600682,21.24669872,157.71,157.67,26.0]
[1748823601033,21.24669872,157.7,157.67,26.0]
[1748823601465,21.24669872,157.68,157.64,6.34356762]
[1748823601750,21.24669872,157.71,157.64,22.20248667]
[1748823601950,10.6,157.73,157.67,26.0]
[1748823602249,21.24669872,157.71,157.67,26.0]
[1748823602443,21.24669872,157.69,157.65,6.34316523]
[1748823602635,10.6,157.73,157.65,6.34316523]
[1748823602956,21.24669872,157.69,157.65,6.34316523]
[1748823603135,21.24669872,157.69,157.65,22.20107832]
[1748823604435,21.24669872,157.68,157.64,6.34356762]
[1748823604633,21.24669872,157.66,157.64,6.34356762]
[1748823604855,21.24669872,157.66,157.64,10.74356762]
[1748823605251,21.24669872,157.65,157.64,4.4]
[1748823605553,21.24669872,157.65,157.6,15.86294416]
[1748823606139,21.24669872,157.66,157.6,15.86294416]
[1748823606464,10.6,157.67,157.65,6.34316523]
[1748823607969,22.82959872,157.75,157.66,59.34964886]
[1748823608148,22.82959872,157.75,157.68,18.64964886]
[1748823608483,22.82959872,157.75,157.7,22.19403931]
[1748823608770,21.24669872,157.75,157.73,8.33333333]
[1748823609151,11.06,157.76,157.73,8.33333333]
[1748823609457,21.24669872,157.75,157.73,8.33333333]
[1748823609663,11.06,157.76,157.73,8.33333333]
[1748823609664,21.24669872,157.74,157.73,8.33333333]
[1748823609864,21.24669872,157.75,157.73,8.33333333]
[1748823610250,21.24669872,157.74,157.73,8.33333333]
[1748823610450,21.24669872,157.74,157.73,14.67328134]
[1748823612955,11.06,157.76,157.73,30.52315137]
[1748823613155,32.30669872,157.76,157.73,30.52315137]
[1748823613360,21.24669872,157.75,157.73,30.52315137]
[1748823613586,32.30669872,157.76,157.73,30.52315137]
[1748823613880,21.24669872,157.74,157.73,14.67328134]
[1748823616369,21.24669872,157.74,157.73,8.33333333]
[1748823617071,27.5862448,157.74,157.73,8.33333333]
[1748823617287,21.24669872,157.74,157.73,8.33333333]
[1748823621281,27.5862448,157.74,157.73,8.33333333]
[1748823621584,21.24669872,157.74,157.73,8.33333333]
[1748823623669,27.5862448,157.74,157.73,8.33333333]